fUSD/lending_fUSD_20250109
["ID","MTS","AMOUNT","RATE_DAILY","PERIOD"]
[348301428,1736437857480,-500.0,0.00010347,2]
[348301429,1736437857489,-519.97,0.00010347,2]
[348301430,1736437857498,-500.0,0.00010347,2]
[348301431,1736437857508,-1160.32,0.00010347,2]
[348301432,1736437857518,-573.37791864,0.00010347,2]
[348301433,1736437857528,-1700.75,0.00010347,2]
[348301434,1736437857537,-500.0,0.00010347,2]
[348301435,1736437857547,-252.90070783,0.00010347,2]
[348301436,1736437858176,-247.09929217,0.00010347,2]
[348301437,1736437858186,-951.67,0.00010347,2]
[348301438,1736437858195,-1183.14,0.00010347,2]
[348301439,1736437858205,-500.0,0.00010347,2]
[348301440,1736437858214,-1476.48,0.00010347,2]
[348301441,1736437858224,-500.0,0.00010347,2]
[348301442,1736437858234,-500.0,0.00010347,2]
[348301443,1736437858243,-869.53,0.00010347,2]
[348301444,1736437858253,-1640.08,0.00010347,2]
[348301445,1736437858263,-1273.91,0.00010347,2]
[348301446,1736437858276,-500.0,0.00010347,2]
[348301447,1736437858286,-1740.11,0.00010347,2]
[348301448,1736437858296,-1206.43,0.00010347,2]
[348301449,1736437858305,-500.0,0.00010347,2]
[348301450,1736437858315,-1273.09,0.00010347,2]
[348301451,1736437858324,-3423.84,0.00010347,2]
[348301452,1736437858335,-641.57,0.00010347,2]
[348301453,1736437858346,-5257.23,0.00010347,2]
[348301454,1736437858360,-722.13,0.00010347,2]
[348301455,1736437858372,-500.0,0.00010347,2]
[348301456,1736437858384,-2463.66,0.00010347,2]
[348301457,1736437858394,-500.0,0.00010347,2]
[348301458,1736437858404,-500.0,0.00010347,2]
[348301459,1736437858415,-1173.77,0.00010347,2]
[348301460,1736437858426,-1338.2253726,0.00010347,2]
[348301461,1736437858442,-1133.2346274,0.00010347,2]
[348301462,1736437858453,-4437.1,0.00010347,2]
[348301463,1736437858463,-983.33,0.00010347,2]
[348301464,1736437858472,-5794.24,0.00010347,2]
[348301465,1736437858482,-14296.49,0.00010347,2]
[348301466,1736437858491,-500.0,0.00010347,2]
[348301467,1736437858501,-500.0,0.00010347,2]
[348301468,1736437858511,-898.9,0.00010347,2]
[348301469,1736437858522,-1528.55,0.00010347,2]
[348301470,1736437858531,-624.99,0.00010347,2]
[348301471,1736437858540,-3643.93,0.00010347,2]
[348301472,1736437858549,-605.09,0.00010347,2]
[348301473,1736437858558,-500.0,0.00010347,2]
[348301474,1736437858567,-4925.1,0.00010347,2]
[348301475,1736437858577,-500.0,0.00010347,2]
[348301476,1736437858587,-500.0,0.00010347,2]
[348301477,1736437858596,-1217.85,0.00010347,2]
[348301478,1736437858606,-613.97,0.00010347,2]
[348301479,1736437858615,-2632.12,0.00010347,2]
[348301480,1736437858624,-500.0,0.00010347,2]
[348301481,1736437858634,-500.0,0.00010347,2]
[348301482,1736437858643,-3990.22,0.00010347,2]
[348301483,1736437858653,-4455.73,0.00010347,2]
[348301484,1736437858663,-765.44,0.00010347,2]
[348301485,1736437858674,-2517.35,0.00010347,2]
[348301486,1736437858684,-943.98,0.00010347,2]
[348301487,1736437858694,-500.0,0.00010347,2]
[348301488,1736437858703,-1436.41,0.00010347,2]
[348301489,1736437858713,-6973.86670765,0.00010347,2]
[348301490,1736437858725,-807.26329235,0.00010347,2]
[348301491,1736437858735,-805.59,0.00010347,2]
[348301492,1736437858746,-1045.51,0.00010347,2]
[348301493,1736437858756,-453.6608382,0.00010347,2]
[348301494,1736437858769,-196.4891618,0.00010347,2]
[348301495,1736437858779,-2133.22,0.00010347,2]
[348301496,1736437858791,-1302.2,0.00010347,2]
[348301497,1736437858801,-500.0,0.00010347,2]
[348301498,1736437858811,-1977.61,0.00010347,2]
[348301499,1736437858820,-972.18,0.00010347,2]
[348301500,1736437858830,-500.0,0.00010347,2]
[348301501,1736437858840,-1089.85,0.00010347,2]
[348301502,1736437858852,-1352.09,0.00010347,2]
[348301503,1736437858863,-1347.28,0.00010347,2]
[348301504,1736437858872,-1565.14,0.00010347,2]
[348301505,1736437858882,-1764.76,0.00010347,2]
[348301506,1736437858892,-834.07,0.00010347,2]
[348301507,1736437858902,-500.0,0.00010347,2]
[348301508,1736437858912,-4763.78,0.00010347,2]
[348301509,1736437858922,-2466.4,0.00010347,2]
[348301510,1736437858934,-556.67,0.00010347,2]
[348301511,1736437858945,-500.0,0.00010347,2]
[348301512,1736437858957,-1351.16,0.00010347,2]
[348301513,1736437858967,-500.0,0.00010347,2]
[348301514,1736437858977,-500.0,0.00010347,2]
[348301515,1736437858987,-150.0,0.00010369,2]
[348301516,1736437858997,-150.0,0.00010382,2]
[348301517,1736437859006,-150.0,0.00010405,2]
[348301518,1736437859016,-500.0,0.0001041,2]
[348301519,1736437859026,-1213.32648493,0.0001041,2]
[348301520,1736437859035,-1000.0,0.00010411,2]
[348301521,1736437859045,-1000.0,0.00010411,2]
[348301522,1736437859056,-1000.0,0.00010411,2]
[348301523,1736437859066,-1000.0,0.00010411,2]
[348301524,1736437859075,-1000.0,0.00010411,2]
[348301525,1736437859085,-1000.0,0.00010411,2]
[348301526,1736437859095,-1000.0,0.00010411,2]
[348301527,1736437859104,-1000.0,0.00010411,2]
[348301528,1736437859115,-1000.0,0.00010411,2]
[348301529,1736437859125,-1000.0,0.00010411,2]
[348301530,1736437859135,-1000.0,0.00010411,2]
[348301531,1736437859146,-1000.0,0.00010411,2]
[348301532,1736437859158,-1000.0,0.00010411,2]
[348301533,1736437859167,-1000.0,0.00010411,2]
[348301534,1736437859177,-1000.0,0.00010411,2]
[348301535,1736437859187,-1000.0,0.00010411,2]
[348301536,1736437859197,-1000.0,0.00010411,2]
[348301537,1736437859208,-1000.0,0.00010411,2]
[348301538,1736437859218,-1000.0,0.00010411,2]
[348301539,1736437859227,-1000.0,0.00010411,2]
[348301540,1736437859238,-612.38,0.00010427,2]
[348301541,1736437859247,-150.0,0.00010442,2]
[348301542,1736437859258,-106.55061267,0.00010478,2]
[348301543,1736437859305,-43.44938733,0.00010478,2]
[348301544,1736437859316,-150.0,0.00010481,2]
[348301545,1736437859327,-423.84185702,0.0001049,2]
[348301546,1736437859337,-150.0,0.00010514,2]
[348301547,1736437859348,-500.0,0.00010518,2]
[348301548,1736437859359,-333.35875565,0.00010518,2]
[348301549,1736437860269,-500.0,9.798e-05,2]
[348301550,1736437860280,-500.0,9.798e-05,2]
[348301551,1736437860290,-500.0,9.798e-05,2]
[348301552,1736437860300,-500.0,9.798e-05,2]
[348301553,1736437860309,-500.0,9.975e-05,2]
[348301554,1736437860319,-500.0,9.975e-05,2]
[348301555,1736437860330,-500.0,9.975e-05,2]
[348301556,1736437860341,-500.0,0.00010072,2]
[348301557,1736437860353,-500.0,0.00010072,2]
[348301558,1736437860364,-500.0,0.00010072,2]
[348301559,1736437860373,-500.0,0.00010072,2]
[348301560,1736437860383,-2614.2,0.00010073,2]
[348301561,1736437860393,-500.0,0.00010249,2]
[348301562,1736437860403,-500.0,0.00010346,2]
[348301563,1736437860413,-500.0,0.00010346,2]
[348301564,1736437860424,-500.0,0.00010346,2]
[348301565,1736437860435,-2614.2,0.00010347,2]
[348301566,1736437860444,-166.64124435,0.00010518,2]
[348301567,1736437860454,-500.0,0.00010518,2]
[348301568,1736437860463,-500.0,0.00010518,2]
[348301569,1736437860473,-500.0,0.00010518,2]
[348301570,1736437860483,-500.0,0.00010518,2]
[348301571,1736437860492,-500.0,0.00010518,2]
[348301572,1736437860502,-500.0,0.00010518,2]
[348301573,1736437860512,-414.30957573,0.00010518,2]
[348301574,1736437860522,-244.15026202,0.00010518,2]
[348301575,1736437860531,-11521.28,0.00010519,2]
[348301576,1736437860540,-500.0,0.00010519,2]
[348301577,1736437860548,-698.4,0.00010519,2]
[348301578,1736437860557,-2706.91,0.00010519,2]
[348301579,1736437860566,-500.0,0.00010519,2]
[348301580,1736437860576,-647.05,0.00010519,2]
[348301581,1736437860596,-1088.93,0.00010519,2]
[348301582,1736437860606,-500.0,0.00010519,2]
[348301583,1736437860616,-1739.64,0.00010519,2]
[348301584,1736437860626,-500.0,0.00010519,2]
[348301585,1736437860636,-1000.0,0.00010519,2]
[348301586,1736437860646,-994.11,0.00010519,2]
[348301587,1736437860656,-500.0,0.00010519,2]
[348301588,1736437860665,-2258.48,0.00010519,2]
[348301589,1736437860675,-1844.55,0.00010519,2]
[348301590,1736437860684,-500.0,0.00010523,2]
[348301591,1736437860693,-500.0,0.00010523,2]
[348301592,1736437860703,-500.0,0.00010523,2]
[348301593,1736437860712,-500.0,0.00010523,2]
[348301594,1736437860721,-500.0,0.00010523,2]
[348301595,1736437860731,-500.0,0.00010523,2]
[348301596,1736437860741,-500.0,0.00010523,2]
[348301597,1736437860750,-128.14891788,0.00010523,2]
[348301598,1736437860763,-371.85108212,0.00010523,2]
[348301599,1736437860773,-500.0,0.00010523,2]
[348301600,1736437860782,-500.0,0.00010523,2]
[348301601,1736437860792,-500.0,0.00010523,2]
[348301602,1736437860802,-500.0,0.00010523,2]
[348301603,1736437860812,-500.0,0.00010523,2]
[348301604,1736437860822,-500.0,0.00010523,2]
[348301605,1736437860833,-500.0,0.00010523,2]
[348301606,1736437860848,-500.0,0.00010523,2]
[348301607,1736437860858,-500.0,0.00010523,2]
[348301608,1736437860868,-500.0,0.00010523,2]
[348301609,1736437860878,-500.0,0.00010523,2]
[348301610,1736437860888,-500.0,0.00010523,2]
[348301611,1736437860897,-500.0,0.00010523,2]
[348301612,1736437860907,-500.0,0.00010523,2]
[348301613,1736437860916,-500.0,0.00010523,2]
[348301614,1736437860925,-500.0,0.00010523,2]
[348301615,1736437860935,-500.0,0.00010523,2]
[348301616,1736437860944,-500.0,0.00010523,2]
[348301617,1736437860954,-90.79617572,0.00010523,2]
[348301618,1736437860967,-409.20382428,0.00010523,2]
[348301619,1736437860977,-9.87957058,0.00010523,2]
[348301620,1736437860989,-490.12042942,0.00010523,2]
[348301621,1736437860998,-500.0,0.00010523,2]
[348301622,1736437861007,-591.57759132,0.00010523,2]
[348301623,1736437861017,-279.04127052,0.00010523,2]
[348301624,1736437861026,-500.0,0.00010523,2]
[348301625,1736437861035,-506.58515974,0.00010523,2]
[348301626,1736437861046,-500.0,0.00010523,2]
[348301627,1736437861055,-500.0,0.00010523,2]
[348301628,1736437861064,-500.0,0.00010523,2]
[348301629,1736437861073,-500.0,0.00010523,2]
[348301630,1736437861088,-500.0,0.00010523,2]
[348301631,1736437861098,-500.0,0.00010523,2]
[348301632,1736437861108,-500.0,0.00010523,2]
[348301633,1736437861119,-296.10266095,0.00010523,2]
[348301634,1736437861128,-500.0,0.00010523,2]
[348301635,1736437861148,-500.0,0.00010523,2]
[348301636,1736437861165,-500.0,0.00010523,2]
[348301637,1736437861184,-500.0,0.00010523,2]
[348301638,1736437861202,-539.18318413,0.00010523,2]
[348301639,1736437861220,-500.0,0.00010523,2]
[348301640,1736437861234,-500.0,0.00010523,2]
[348301641,1736437861253,-500.0,0.00010523,2]
[348301642,1736437861271,-500.0,0.00010523,2]
[348301643,1736437861289,-500.0,0.00010523,2]
[348301644,1736437861308,-500.0,0.00010523,2]
[348301645,1736437861326,-500.0,0.00010523,2]
[348301646,1736437861348,-154.66405128,0.00010523,2]
[348301647,1736437861365,-500.0,0.00010523,2]
[348301648,1736437861378,-500.0,0.00010523,2]
[348301649,1736437861399,-425.27648481,0.00010523,2]
[348301650,1736437861412,-500.0,0.00010523,2]
[348301651,1736437861430,-500.0,0.00010523,2]
[348301652,1736437861447,-500.0,0.00010523,2]
[348301653,1736437861461,-500.0,0.00010523,2]
[348301654,1736437861480,-500.0,0.00010523,2]
[348301655,1736437861495,-500.0,0.00010523,2]
[348301656,1736437861510,-500.0,0.00010523,2]
[348301657,1736437861525,-500.0,0.00010523,2]
[348301658,1736437861540,-500.0,0.00010523,2]
[348301659,1736437861555,-500.0,0.00010523,2]
[348301660,1736437861569,-500.0,0.00010523,2]
[348301661,1736437861585,-500.0,0.00010523,2]
[348301662,1736437861599,-500.0,0.00010523,2]
[348301663,1736437861613,-500.0,0.00010523,2]
[348301664,1736437861628,-865.87,0.00010523,2]
[348301665,1736437861643,-500.0,0.00010523,2]
[348301666,1736437861657,-500.0,0.00010523,2]
[348301667,1736437861671,-500.0,0.00010523,2]
[348301668,1736437861687,-500.0,0.00010523,2]
[348301669,1736437861703,-500.0,0.00010523,2]
[348301670,1736437861717,-500.0,0.00010523,2]
[348301671,1736437861732,-500.0,0.00010523,2]
[348301672,1736437861747,-500.0,0.00010523,2]
[348301673,1736437861762,-500.0,0.00010523,2]
[348301674,1736437861777,-500.0,0.00010523,2]
[348301675,1736437861790,-500.0,0.00010523,2]
[348301676,1736437861804,-500.0,0.00010523,2]
[348301677,1736437861819,-500.0,0.00010523,2]
[348301678,1736437861836,-500.0,0.00010523,2]
[348301679,1736437861850,-500.0,0.00010523,2]
[348301680,1736437861865,-500.0,0.00010523,2]
[348301681,1736437861879,-606.58,0.00010523,2]
[348301682,1736437861893,-500.0,0.00010523,2]
[348301683,1736437861908,-500.0,0.00010523,2]
[348301684,1736437861924,-500.0,0.00010523,2]
[348301685,1736437861940,-500.0,0.00010523,2]
[348301686,1736437861955,-500.0,0.00010523,2]
[348301687,1736437861970,-500.0,0.00010523,2]
[348301688,1736437861986,-500.0,0.00010523,2]
[348301689,1736437862000,-500.0,0.00010523,2]
[348301690,1736437862015,-500.0,0.00010523,2]
[348301691,1736437862031,-500.0,0.00010523,2]
[348301692,1736437862046,-500.0,0.00010523,2]
[348301693,1736437862060,-500.0,0.00010523,2]
[348301694,1736437862074,-500.0,0.00010523,2]
[348301695,1736437862091,-500.0,0.00010523,2]
[348301696,1736437862106,-500.0,0.00010523,2]
[348301697,1736437862120,-500.0,0.00010523,2]
[348301698,1736437862134,-500.0,0.00010523,2]
[348301699,1736437862148,-500.0,0.00010523,2]
[348301700,1736437862163,-500.0,0.00010523,2]
[348301701,1736437862179,-344.42594496,0.00010523,2]
[348301702,1736437862194,-500.0,0.00010523,2]
[348301703,1736437862209,-500.0,0.00010523,2]
[348301704,1736437862225,-500.0,0.00010523,2]
[348301705,1736437862239,-500.0,0.00010523,2]
[348301706,1736437862256,-667.65,0.00010523,2]
[348301707,1736437862269,-500.0,0.00010523,2]
[348301708,1736437862284,-500.0,0.00010523,2]
[348301709,1736437862299,-500.0,0.00010523,2]
[348301710,1736437862314,-188.48608733,0.00010523,2]
[348301711,1736437862329,-500.0,0.00010523,2]
[348301712,1736437862346,-500.0,0.00010523,2]
[348301713,1736437862363,-500.0,0.00010523,2]
[348301714,1736437862377,-500.0,0.00010523,2]
[348301715,1736437862391,-500.0,0.00010523,2]
[348301716,1736437862407,-500.0,0.00010523,2]
[348301717,1736437862427,-500.0,0.00010523,2]
[348301718,1736437862441,-500.0,0.00010523,2]
[348301719,1736437862451,-500.0,0.00010523,2]
[348301720,1736437862461,-500.0,0.00010523,2]
[348301721,1736437862470,-500.0,0.00010523,2]
[348301722,1736437862480,-500.0,0.00010523,2]
[348301723,1736437862490,-500.0,0.00010523,2]
[348301724,1736437862500,-500.0,0.00010523,2]
[348301725,1736437862511,-500.0,0.00010523,2]
[348301726,1736437862521,-500.0,0.00010523,2]
[348301727,1736437862531,-500.0,0.00010523,2]
[348301728,1736437862541,-500.0,0.00010523,2]
[348301729,1736437862552,-537.16,0.00010523,2]
[348301730,1736437862562,-792.39,0.00010523,2]
[348301731,1736437862572,-500.0,0.00010523,2]
[348301732,1736437862582,-500.0,0.00010523,2]
[348301733,1736437862598,-500.0,0.00010523,2]
[348301734,1736437862608,-500.0,0.00010523,2]
[348301735,1736437862619,-500.0,0.00010523,2]
[348301736,1736437862629,-500.0,0.00010523,2]
[348301737,1736437862639,-500.0,0.00010523,2]
[348301738,1736437862649,-500.0,0.00010523,2]
[348301739,1736437862658,-500.0,0.00010523,2]
[348301740,1736437862668,-500.0,0.00010523,2]
[348301741,1736437862677,-500.0,0.00010523,2]
[348301742,1736437862687,-500.0,0.00010523,2]
[348301743,1736437862696,-500.0,0.00010523,2]
[348301744,1736437862706,-500.0,0.00010523,2]
[348301745,1736437862715,-500.0,0.00010523,2]
[348301746,1736437862726,-500.0,0.00010523,2]
[348301747,1736437862736,-500.0,0.00010523,2]
[348301748,1736437862747,-505.35,0.00010523,2]
[348301749,1736437862757,-500.0,0.00010523,2]
[348301750,1736437863189,-500.0,0.00010523,2]
[348301751,1736437863222,-500.0,0.00010523,2]
[348301752,1736437863244,-500.0,0.00010523,2]
[348301753,1736437863254,-500.0,0.00010523,2]
[348301754,1736437863265,-500.0,0.00010523,2]
[348301755,1736437863274,-582.36,0.00010523,2]
[348301756,1736437863284,-500.0,0.00010523,2]
[348301757,1736437863293,-500.0,0.00010523,2]
[348301758,1736437863303,-500.0,0.00010523,2]
[348301759,1736437863312,-500.0,0.00010523,2]
[348301760,1736437863321,-373.92236187,0.00010523,2]
[348301761,1736437863331,-500.0,0.00010523,2]
[348301762,1736437863348,-500.0,0.00010523,2]
[348301763,1736437863360,-500.0,0.00010523,2]
[348301764,1736437863371,-500.0,0.00010523,2]
[348301765,1736437863381,-500.0,0.00010523,2]
[348301766,1736437863393,-500.0,0.00010523,2]
[348301767,1736437863404,-500.0,0.00010523,2]
[348301768,1736437863414,-500.0,0.00010523,2]
[348301769,1736437863425,-500.0,0.00010523,2]
[348301770,1736437863434,-500.0,0.00010523,2]
[348301771,1736437863444,-500.0,0.00010523,2]
[348301772,1736437863454,-500.0,0.00010523,2]
[348301773,1736437863464,-535.70954898,0.00010523,2]
[348301774,1736437863474,-500.0,0.00010523,2]
[348301775,1736437863484,-500.0,0.00010523,2]
[348301776,1736437863494,-500.0,0.00010523,2]
[348301777,1736437863504,-500.0,0.00010523,2]
[348301778,1736437863513,-500.0,0.00010523,2]
[348301779,1736437863523,-500.0,0.00010523,2]
[348301780,1736437863533,-500.0,0.00010523,2]
[348301781,1736437863543,-553.55,0.00010523,2]
[348301782,1736437863553,-500.0,0.00010523,2]
[348301783,1736437863563,-1010.28,0.00010523,2]
[348301784,1736437863574,-500.0,0.00010523,2]
[348301785,1736437863584,-527.22,0.00010523,2]
[348301786,1736437863595,-500.0,0.00010523,2]
[348301787,1736437863605,-500.14,0.00010523,2]
[348301788,1736437863615,-500.0,0.00010523,2]
[348301789,1736437863625,-500.0,0.00010523,2]
[348301790,1736437863636,-500.0,0.00010523,2]
[348301791,1736437863646,-500.0,0.00010523,2]
[348301792,1736437863657,-500.0,0.00010523,2]
[348301793,1736437863668,-500.0,0.00010523,2]
[348301794,1736437863678,-500.0,0.00010523,2]
[348301795,1736437863688,-593.97,0.00010523,2]
[348301796,1736437863697,-1195.03,0.00010523,2]
[348301797,1736437863707,-500.0,0.00010523,2]
[348301798,1736437863717,-500.0,0.00010523,2]
[348301799,1736437863727,-556.8,0.00010523,2]
[348301800,1736437863737,-500.0,0.00010523,2]
[348301801,1736437863747,-500.0,0.00010523,2]
[348301802,1736437863757,-500.0,0.00010523,2]
[348301803,1736437863766,-729.39,0.00010523,2]
[348301804,1736437863776,-500.0,0.00010523,2]
[348301805,1736437863786,-500.0,0.00010523,2]
[348301806,1736437863796,-1068.63,0.00010523,2]
[348301807,1736437863806,-500.0,0.00010523,2]
[348301808,1736437863816,-500.0,0.00010523,2]
[348301809,1736437863826,-500.0,0.00010523,2]
[348301810,1736437863839,-500.0,0.00010523,2]
[348301811,1736437863850,-500.0,0.00010523,2]
[348301812,1736437863860,-500.0,0.00010523,2]
[348301813,1736437863869,-500.0,0.00010523,2]
[348301814,1736437863880,-644.84996578,0.00010523,2]
[348301815,1736437863889,-501.52287477,0.00010523,2]
[348301816,1736437863899,-500.0,0.00010523,2]
[348301817,1736437863909,-500.0,0.00010523,2]
[348301818,1736437863919,-500.0,0.00010523,2]
[348301819,1736437863929,-670.07,0.00010523,2]
[348301820,1736437863940,-500.0,0.00010523,2]
[348301821,1736437863950,-3588.74,0.00010523,2]
[348301822,1736437863961,-500.0,0.00010523,2]
[348301823,1736437863971,-500.0,0.00010523,2]
[348301824,1736437863981,-500.0,0.00010523,2]
[348301825,1736437863992,-500.0,0.00010523,2]
[348301826,1736437864002,-599.38,0.00010523,2]
[348301827,1736437864013,-500.0,0.00010523,2]
[348301828,1736437864022,-500.0,0.00010523,2]
[348301829,1736437864033,-500.0,0.00010523,2]
[348301830,1736437864043,-500.0,0.00010523,2]
[348301831,1736437864053,-500.0,0.00010523,2]
[348301832,1736437864062,-929.6,0.00010523,2]
[348301833,1736437864072,-500.0,0.00010523,2]
[348301834,1736437864083,-500.0,0.00010523,2]
[348301835,1736437864097,-500.0,0.00010523,2]
[348301836,1736437864107,-500.0,0.00010523,2]
[348301837,1736437864118,-2939.15,0.00010523,2]
[348301838,1736437864128,-500.0,0.00010523,2]
[348301839,1736437864138,-500.0,0.00010523,2]
[348301840,1736437864148,-500.0,0.00010523,2]
[348301841,1736437864158,-500.0,0.00010523,2]
[348301842,1736437864168,-500.0,0.00010523,2]
[348301843,1736437864178,-631.50961126,0.00010523,2]
[348301844,1736437864188,-500.0,0.00010523,2]
[348301845,1736437864199,-500.0,0.00010523,2]
[348301846,1736437864208,-510.19349544,0.00010523,2]
[348301847,1736437864220,-500.0,0.00010523,2]
[348301848,1736437864229,-7581.06,0.00010523,2]
[348301849,1736437864239,-500.0,0.00010523,2]
[348301850,1736437864248,-500.0,0.00010523,2]
[348301851,1736437864258,-500.0,0.00010523,2]
[348301852,1736437864267,-500.0,0.00010523,2]
[348301853,1736437864277,-500.0,0.00010523,2]
[348301854,1736437864287,-444.19187046,0.00010523,2]
[348301855,1736437864297,-500.0,0.00010523,2]
[348301856,1736437864307,-633.05,0.00010523,2]
[348301857,1736437864317,-500.0,0.00010523,2]
[348301858,1736437864326,-511.65,0.00010523,2]
[348301859,1736437864338,-500.0,0.00010523,2]
[348301860,1736437864350,-500.0,0.00010523,2]
[348301861,1736437864362,-500.0,0.00010523,2]
[348301862,1736437864372,-5133.65,0.00010523,2]
[348301863,1736437864382,-314.53818646,0.00010523,2]
[348301864,1736437864394,-500.0,0.00010523,2]
[348301865,1736437864404,-815.48,0.00010523,2]
[348301866,1736437864414,-500.0,0.00010523,2]
[348301867,1736437864425,-1045.99,0.00010523,2]
[348301868,1736437864435,-500.0,0.00010523,2]
[348301869,1736437864445,-500.0,0.00010523,2]
[348301870,1736437864454,-500.0,0.00010523,2]
[348301871,1736437864464,-500.0,0.00010523,2]
[348301872,1736437864473,-1088.03,0.00010523,2]
[348301873,1736437864483,-500.0,0.00010523,2]
[348301874,1736437864492,-500.0,0.00010523,2]
[348301875,1736437864503,-500.0,0.00010523,2]
[348301876,1736437864512,-500.0,0.00010523,2]
[348301877,1736437864525,-500.0,0.00010523,2]
[348301878,1736437864534,-500.0,0.00010523,2]
[348301879,1736437864544,-500.0,0.00010523,2]
[348301880,1736437864555,-500.0,0.00010523,2]
[348301881,1736437864564,-500.0,0.00010523,2]
[348301882,1736437864574,-500.0,0.00010523,2]
[348301883,1736437864585,-520.72,0.00010523,2]
[348301884,1736437864597,-2743.16,0.00010523,2]
[348301885,1736437864607,-500.0,0.00010523,2]
[348301886,1736437864616,-500.0,0.00010523,2]
[348301887,1736437864626,-500.0,0.00010523,2]
[348301888,1736437864636,-500.0,0.00010523,2]
[348301889,1736437864646,-500.0,0.00010523,2]
[348301890,1736437864656,-562.48580831,0.00010523,2]
[348301891,1736437864665,-502.42159726,0.00010523,2]
[348301892,1736437864675,-500.0,0.00010523,2]
[348301893,1736437864685,-557.98,0.00010523,2]
[348301894,1736437864694,-500.0,0.00010523,2]
[348301895,1736437864704,-500.0,0.00010523,2]
[348301896,1736437864714,-500.0,0.00010523,2]
[348301897,1736437864723,-500.0,0.00010523,2]
[348301898,1736437864732,-756.68,0.00010523,2]
[348301899,1736437864741,-500.0,0.00010523,2]
[348301900,1736437864751,-647.05,0.00010523,2]
[348301901,1736437864760,-500.0,0.00010523,2]
[348301902,1736437864770,-284.34,0.00010523,2]
[348301903,1736437864780,-6705.8,0.00010523,2]
[348301904,1736437864790,-500.0,0.00010523,2]
[348301905,1736437864799,-500.0,0.00010523,2]
[348301906,1736437864809,-1391.22,0.00010523,2]
[348301907,1736437864819,-500.0,0.00010523,2]
[348301908,1736437864829,-788.5,0.00010523,2]
[348301909,1736437864840,-1431.7,0.00010523,2]
[348301910,1736437864850,-500.0,0.00010523,2]
[348301911,1736437864860,-500.0,0.00010523,2]
[348301912,1736437864870,-500.0,0.00010523,2]
[348301913,1736437864880,-500.0,0.00010523,2]
[348301914,1736437864889,-500.0,0.00010523,2]
[348301915,1736437864899,-500.0,0.00010523,2]
[348301916,1736437864909,-500.0,0.00010523,2]
[348301917,1736437864919,-500.0,0.00010523,2]
[348301918,1736437864928,-500.0,0.00010523,2]
[348301919,1736437864938,-500.0,0.00010523,2]
[348301920,1736437864947,-500.0,0.00010523,2]
[348301921,1736437864957,-500.0,0.00010523,2]
[348301922,1736437864967,-500.0,0.00010523,2]
[348301923,1736437864976,-500.0,0.00010523,2]
[348301924,1736437864985,-500.0,0.00010523,2]
[348301925,1736437864994,-500.0,0.00010523,2]
[348301926,1736437865003,-500.0,0.00010523,2]
[348301927,1736437865013,-1186.43,0.00010523,2]